bitfinex-derivatives/quotes_BTCF0:USTF0_20241006
["timestamp","ask_amount","ask_price","bid_price","bid_amount"]
[1728202532545,0.0325,62008.0,62002.0,0.17451]
[1728202532844,0.0325,62008.0,62007.0,0.11]
[1728202533943,0.0445,62008.0,62007.0,0.11]
[1728202534337,0.0565,62008.0,62007.0,0.11]
[1728202534834,0.121004,62008.0,62007.0,0.11]
[1728202535751,0.109004,62008.0,62007.0,0.11]
[1728202535944,0.105004,62008.0,62007.0,0.112]
[1728202538248,0.105004,62008.0,62007.0,0.13690142]
[1728202540449,0.008,62008.0,62007.0,0.20140642]
[1728202540862,0.008,62008.0,62007.0,0.24959306]
[1728202544348,0.008,62008.0,62007.0,0.20140642]
[1728202545463,0.01135262,62008.0,62007.0,0.20140642]
[1728202546278,0.01135262,62008.0,62007.0,0.26565527]
[1728202547459,0.01135262,62008.0,62007.0,0.20140642]
[1728202549463,0.01135262,62008.0,62007.0,0.37828284]
[1728202550357,0.01135262,62008.0,62007.0,0.29797177]
[1728202551955,0.01135262,62008.0,62007.0,0.29798955]
[1728202552557,0.01398262,62008.0,62007.0,0.29798955]
[1728202559269,0.01398262,62008.0,62007.0,0.39472498]
[1728202560770,0.01398262,62008.0,62007.0,0.39495576]
[1728202562275,0.01398262,62008.0,62007.0,0.29822033]
[1728202566766,0.01398262,62008.0,62007.0,0.30076607]
[1728202568973,0.01398262,62008.0,62007.0,0.41628694]
[1728202569575,0.01398262,62008.0,62007.0,0.41632653]
[1728202570463,0.01135262,62008.0,62007.0,0.41632653]
[1728202574277,0.01135262,62008.0,62007.0,0.41659513]
[1728202579172,0.01135262,62008.0,62007.0,0.41657291]
[1728202579676,0.01135262,62008.0,62007.0,0.30095237]
[1728202579877,0.01135262,62008.0,62007.0,0.20395216]
[1728202584686,0.01135262,62008.0,62007.0,0.09395216]
[1728202584889,0.01398262,62008.0,62007.0,0.20395216]
[1728202585087,0.01398262,62008.0,62007.0,0.56475216]
[1728202587389,0.01398262,62008.0,62007.0,0.77766408]
[1728202587585,0.01398262,62008.0,62007.0,0.66188521]
[1728202587998,0.02298262,62008.0,62007.0,0.66188521]
[1728202598689,0.02298262,62008.0,62007.0,0.77771813]
[1728202599301,0.02298262,62008.0,62007.0,0.66771813]
[1728202599510,0.02298262,62008.0,62007.0,0.77771813]
[1728202601804,0.02298262,62008.0,62007.0,0.56475216]
[1728202602008,0.02298262,62008.0,62007.0,0.41697299]
[1728202602209,0.02035262,62008.0,62007.0,0.77777299]
[1728202606697,0.02035262,62008.0,62007.0,0.77815029]
[1728202611399,0.02035262,62008.0,62007.0,0.77822511]
[1728202611810,0.02035262,62008.0,62007.0,0.41742511]
[1728202612010,0.02035262,62008.0,62007.0,0.77822511]
[1728202612996,0.02035262,62008.0,62007.0,0.41742511]
[1728202613203,0.02035262,62008.0,62007.0,0.77822511]
[1728202615511,0.02035262,62008.0,62007.0,0.41742511]
[1728202615816,0.02035262,62008.0,62007.0,0.77822511]
[1728202616306,0.02035262,62008.0,62007.0,0.56475216]
[1728202616512,0.02035262,62008.0,62007.0,0.77822632]
[1728202616709,0.02298262,62008.0,62007.0,0.77822632]
[1728202620004,0.02298262,62008.0,62007.0,0.41742632]
[1728202620813,0.02298262,62008.0,62007.0,0.77822632]
[1728202622316,0.02298262,62008.0,62007.0,0.41742632]
[1728202622518,0.02298262,62008.0,62007.0,0.77822632]
[1728202624616,0.00621951,62012.0,62007.0,0.77822632]
[1728202624617,0.0038,62012.0,62007.0,0.77822632]
[1728202624920,0.0038,62015.0,62012.0,0.0645]
[1728202625107,0.0318,62017.0,62014.0,0.11]
[1728202625307,0.0318,62017.0,62015.0,0.19416948]
[1728202625507,0.0318,62017.0,62016.0,0.09738955]
[1728202626814,0.0408,62017.0,62016.0,0.09838955]
[1728202627320,0.0488,62017.0,62016.0,0.09938955]
[1728202628109,0.0488,62017.0,62016.0,0.19609961]
[1728202628307,0.0488,62017.0,62016.0,0.09938955]
[1728202629127,0.0488,62017.0,62016.0,0.09923902]
[1728202630628,0.0488,62017.0,62016.0,0.22118525]
[1728202630917,0.017,62017.0,62016.0,0.18897119]
[1728202631113,0.003512,62020.0,62016.0,0.62625175]
[1728202631320,0.0038,62023.0,62022.0,0.06449]
[1728202631522,0.097783,62028.0,62022.0,0.27172902]
[1728202631713,0.097783,62028.0,62027.0,0.19049174]
[1728202631909,0.097783,62028.0,62027.0,0.28773076]
[1728202632113,0.097783,62028.0,62027.0,0.20723902]
[1728202632525,0.097783,62028.0,62027.0,0.21526397]
[1728202632921,0.097783,62028.0,62027.0,0.21626397]
[1728202633313,0.097783,62028.0,62027.0,0.29667073]
[1728202634519,0.097783,62028.0,62027.0,0.11902495]
[1728202636220,0.0333,62028.0,62027.0,0.11902495]
[1728202637616,0.0333,62028.0,62027.0,0.14414958]
[1728202638416,0.0333,62028.0,62027.0,0.20840033]
[1728202638616,0.0333,62028.0,62027.0,0.14414958]
[1728202639225,0.0333,62028.0,62027.0,0.2083945]
[1728202645715,0.01269204,62028.0,62027.0,0.2083945]
[1728202645916,0.03644335,62030.0,62027.0,0.2083945]
[1728202646130,0.03238356,62030.0,62027.0,0.2083945]
[1728202647124,0.03238356,62030.0,62027.0,0.2093945]
[1728202647428,0.03238356,62030.0,62029.0,0.11]
[1728202648933,0.03238356,62030.0,62029.0,0.112]
[1728202651228,0.03238356,62030.0,62029.0,0.17624492]
[1728202652334,0.03238356,62030.0,62029.0,0.112]
[1728202657247,0.03238356,62030.0,62029.0,0.19240676]
[1728202657445,0.03238356,62030.0,62029.0,0.28812181]
[1728202658241,0.03238356,62030.0,62029.0,0.20771505]
[1728202661448,0.03238356,62030.0,62029.0,0.30430514]
[1728202661746,0.03238356,62030.0,62029.0,0.20771505]
[1728202662143,0.03238356,62030.0,62029.0,0.30461998]
[1728202662347,0.03238356,62030.0,62029.0,0.20788715]
[1728202663348,0.03238356,62030.0,62029.0,0.30462013]
[1728202673570,0.0004,62032.0,62029.0,0.36910213]
[1728202673765,0.0004,62032.0,62030.0,0.09588715]
[1728202674065,0.0004,62032.0,62031.0,0.09588715]
[1728202674066,0.064879,62032.0,62031.0,0.09588715]
[1728202675559,0.064879,62032.0,62031.0,0.09688715]
[1728202675766,0.064879,62032.0,62031.0,0.09788715]
[1728202680762,0.064879,62032.0,62031.0,0.09692414]
[1728202682173,0.174879,62032.0,62031.0,0.09692414]
[1728202682362,0.53948514,62032.0,62031.0,0.09692414]
[1728202682561,0.658519,62032.0,62031.0,0.09692414]
[1728202682866,0.174879,62032.0,62031.0,0.002]
[1728202683066,1.258519,62032.0,62031.0,0.002]
[1728202683274,1.258519,62032.0,62030.0,0.06449666]
[1728202683275,0.06448,62031.0,62030.0,0.06449666]
[1728202683469,0.064481,62030.0,62029.0,0.06449666]
[1728202683663,0.174481,62030.0,62029.0,0.06449666]
[1728202683861,1.258121,62030.0,62029.0,0.06449666]
[1728202684274,0.064482,62029.0,62028.0,0.06449666]
[1728202684676,1.148122,62029.0,62028.0,0.06449666]
[1728202685267,0.064483,62028.0,62027.0,0.07579666]
[1728202685574,0.064483,62028.0,62027.0,0.06449666]
[1728202685575,0.548123,62028.0,62027.0,0.06449666]
[1728202687464,0.548123,62028.0,62027.0,0.06549666]
[1728202688287,0.548123,62028.0,62027.0,0.001]
[1728202688775,0.908923,62028.0,62027.0,0.001]
[1728202688978,0.425283,62028.0,62027.0,0.001]
[1728202689479,0.535283,62028.0,62027.0,0.06549666]
[1728202690668,0.535283,62028.0,62027.0,0.06286666]
[1728202692773,0.174483,62028.0,62027.0,0.06286666]
[1728202692978,0.535283,62028.0,62027.0,0.06286666]
[1728202693286,0.535283,62028.0,62024.0,0.0113]
[1728202693287,0.064486,62026.0,62024.0,0.0113]
[1728202693582,0.425286,62026.0,62024.0,0.0113]
[1728202697379,0.425286,62026.0,62024.0,0.09193393]
[1728202697776,0.425286,62026.0,62024.0,0.0113]
[1728202698174,0.425286,62026.0,62024.0,0.09193393]
[1728202699578,0.064486,62026.0,62024.0,0.09193393]
[1728202700778,0.064486,62026.0,62025.0,0.08063393]
[1728202700989,0.064486,62026.0,62024.0,0.09193393]
[1728202703379,0.064486,62026.0,62025.0,0.17575287]
[1728202703774,0.064486,62026.0,62024.0,0.0113]
[1728202703775,0.064486,62026.0,62024.0,0.09193393]
[1728202704289,0.064486,62026.0,62025.0,0.08063393]
[1728202704587,0.36276,62029.0,62025.0,0.08063393]
[1728202704787,0.3608,62029.0,62025.0,0.08063393]
[1728202705386,0.3608,62029.0,62026.0,0.08063393]
[1728202705585,0.425282,62029.0,62026.0,0.08063393]
[1728202705787,0.425282,62029.0,62025.0,0.08163393]
[1728202706088,0.425282,62029.0,62026.0,0.08063393]
[1728202706790,0.425282,62029.0,62026.0,0.08163393]
[1728202708081,0.425282,62029.0,62026.0,0.08263393]
[1728202708276,0.425282,62029.0,62027.0,0.08063393]
[1728202708481,0.425282,62029.0,62026.0,0.08263393]
[1728202709293,0.425282,62029.0,62027.0,0.08063393]
[1728202710578,0.3608,62029.0,62028.0,0.064483]
[1728202710785,0.3608,62029.0,62028.0,0.095783]
[1728202711299,0.3608,62029.0,62028.0,0.27190515]
[1728202711798,0.0004,62032.0,62031.0,0.06448]
[1728202711991,0.0004,62032.0,62031.0,0.26986304]
[1728202712500,0.0004,62032.0,62031.0,0.26994524]
[1728202713809,0.0004,62032.0,62031.0,0.27094524]
[1728202714198,0.0004,62032.0,62031.0,0.27194524]
[1728202717221,0.0004,62032.0,62031.0,0.3524734]
[1728202717421,0.0004,62032.0,62031.0,0.27194524]
[1728202718728,0.0004,62032.0,62031.0,0.26931524]
[1728202719920,0.0004,62032.0,62031.0,0.29393851]
[1728202721831,0.0004,62032.0,62031.0,0.29311067]
[1728202723434,0.0004,62037.0,62035.0,0.064476]
[1728202723626,0.0004,62037.0,62036.0,0.0331]
[1728202723827,0.0004,62037.0,62036.0,0.20814621]
[1728202724328,0.0004,62037.0,62036.0,0.27262121]
[1728202724534,0.0004,62037.0,62036.0,0.19213466]
[1728202724733,0.0004,62037.0,62036.0,0.19313466]
[1728202725138,0.0004,62037.0,62036.0,0.27359292]
[1728202725532,0.0004,62037.0,62036.0,0.17903326]
[1728202725735,0.0004,62037.0,62036.0,0.098575]
[1728202726334,0.0004,62037.0,62036.0,0.099575]
[1728202732132,0.0004,62037.0,62036.0,0.099975]
[1728202733831,0.0004,62037.0,62036.0,0.066875]
[1728202738942,0.0004,62037.0,62036.0,0.14733326]
[1728202739138,0.0004,62037.0,62036.0,0.24116579]
[1728202740244,0.0004,62037.0,62036.0,0.16070753]
[1728202740647,0.0004,62037.0,62036.0,0.16072762]
[1728202740849,0.0004,62037.0,62036.0,0.2412194]
[1728202741241,0.0004,62037.0,62036.0,0.16072762]
[1728202744354,0.0004,62037.0,62036.0,0.16091949]
[1728202744561,0.0004,62037.0,62036.0,0.09644449]
[1728202746956,0.0004,62037.0,62036.0,0.09381449]
[1728202748155,0.064874,62037.0,62036.0,0.09381449]
[1728202748947,0.064874,62037.0,62033.0,0.10803298]
[1728202749142,0.0004,62034.0,62033.0,0.10803298]
[1728202749457,0.0004,62034.0,62033.0,0.0113]
[1728202749649,0.064877,62034.0,62033.0,0.0113]
[1728202750451,0.064877,62034.0,62033.0,0.0123]
[1728202750846,0.064877,62034.0,62033.0,0.0133]
[1728202751249,0.0004,62034.0,62033.0,0.0133]
[1728202751657,0.0004,62034.0,62033.0,0.0123]
[1728202751960,0.0004,62034.0,62033.0,0.0133]
[1728202753153,0.0004,62034.0,62033.0,0.12589285]
[1728202753759,0.0004,62034.0,62033.0,0.12589401]
[1728202758550,0.0004,62034.0,62033.0,0.1260722]
[1728202760565,0.0004,62034.0,62033.0,0.1905502]
[1728202761861,0.0004,62034.0,62033.0,0.28512971]
[1728202763958,0.0004,62034.0,62033.0,0.28312971]
[1728202767362,0.0004,62034.0,62033.0,0.28192187]
[1728202769163,0.0004,62034.0,62033.0,0.16982338]
[1728202770874,0.0004,62034.0,62033.0,0.10534538]
[1728202771575,0.0004,62034.0,62033.0,0.20204796]
[1728202773472,0.0004,62034.0,62033.0,0.10534538]
[1728202773671,0.0004,62034.0,62033.0,0.20204796]
[1728202773871,0.0004,62034.0,62033.0,0.10534538]
[1728202774470,0.064877,62034.0,62033.0,0.10534538]
[1728202774872,0.064877,62034.0,62033.0,0.10271538]
[1728202776781,0.064877,62034.0,62033.0,0.19941796]
[1728202777282,0.174877,62034.0,62033.0,0.10271538]
[1728202777475,1.258477,62034.0,62031.0,0.08439768]
[1728202777781,1.258477,62034.0,62029.0,0.08059768]
[1728202777782,0.064481,62030.0,62029.0,0.08059768]
[1728202777980,0.174481,62030.0,62029.0,0.08059768]
[1728202778481,0.064482,62029.0,62028.0,0.08059768]
[1728202778679,0.095582,62029.0,62028.0,0.08059768]
[1728202779984,0.095582,62029.0,62028.0,0.09359768]
[1728202780480,0.095582,62029.0,62028.0,0.004]
[1728202781574,0.095582,62029.0,62028.0,0.009]
[1728202790992,0.095582,62029.0,62028.0,0.07337606]
[1728202792483,0.095582,62029.0,62028.0,0.009]
[1728202793793,0.205582,62029.0,62028.0,0.009]
[1728202795584,0.205582,62029.0,62028.0,0.0733928]
[1728202795997,0.205582,62029.0,62028.0,0.009]
[1728202796585,0.205582,62029.0,62028.0,0.07339684]
[1728202796891,0.205582,62029.0,62028.0,0.009]
[1728202797489,0.205582,62029.0,62028.0,0.07339684]
[1728202797686,0.566382,62029.0,62028.0,0.07339684]
[1728202798289,0.205582,62029.0,62028.0,0.07339684]
[1728202798691,0.566382,62029.0,62028.0,0.07339684]
[1728202799391,0.205582,62029.0,62028.0,0.07339684]
[1728202799589,0.566382,62029.0,62028.0,0.07339684]
[1728202800395,0.566382,62029.0,62028.0,0.009]
[1728202803191,0.566382,62029.0,62028.0,0.00637]
[1728202803386,0.205582,62029.0,62028.0,0.00637]
[1728202803698,0.566382,62029.0,62028.0,0.00637]
[1728202803890,0.456382,62029.0,62028.0,0.00637]
[1728202804092,0.566382,62029.0,62028.0,0.00637]
[1728202804985,0.535282,62029.0,62028.0,0.00637]
[1728202805184,0.174482,62029.0,62028.0,0.00637]
[1728202805386,0.174482,62029.0,62028.0,0.08696768]
[1728202805582,0.174482,62029.0,62028.0,0.00637]
[1728202806084,0.174482,62029.0,62028.0,0.08696768]
[1728202806281,0.174482,62029.0,62028.0,0.10042944]
[1728202812193,0.174482,62029.0,62028.0,0.10052246]
[1728202813906,0.174482,62029.0,62028.0,0.1811502]
[1728202814198,0.174482,62029.0,62028.0,0.10051674]
[1728202815290,0.174482,62029.0,62028.0,0.19721932]
[1728202815490,0.174482,62029.0,62028.0,0.10051674]
[1728202815898,0.174482,62029.0,62028.0,0.19721932]
[1728202817510,0.174482,62029.0,62028.0,0.10051674]
[1728202817707,0.174482,62029.0,62028.0,0.19721932]
[1728202818417,0.064482,62029.0,62028.0,0.10051674]
[1728202818908,0.064482,62029.0,62028.0,0.10051124]
[1728202820415,0.174482,62029.0,62028.0,0.10051124]
[1728202823519,0.174482,62029.0,62028.0,0.10054217]
[1728202828508,0.174482,62029.0,62028.0,0.10056752]
[1728202830806,0.174482,62029.0,62028.0,0.09793752]
[1728202833222,0.174482,62029.0,62028.0,0.0981003]
[1728202836411,0.174482,62029.0,62028.0,0.09809497]
[1728202838110,0.174482,62029.0,62028.0,0.09809983]
[1728202842825,0.174482,62029.0,62028.0,0.09810619]
[1728202852525,0.174482,62029.0,62028.0,0.09823919]
[1728202854133,0.174482,62029.0,62028.0,0.17888563]
[1728202855632,0.174482,62029.0,62028.0,0.08438644]
[1728202856934,0.174482,62029.0,62028.0,0.00374]
[1728202858434,0.174482,62029.0,62028.0,0.00111]
[1728202861033,0.064482,62029.0,62028.0,0.00111]
[1728202861235,0.174482,62029.0,62028.0,0.00111]
[1728202865639,0.535282,62029.0,62028.0,0.00111]
[1728202876750,0.425282,62029.0,62028.0,0.00111]
[1728202876953,0.425282,62029.0,62028.0,0.08175644]
[1728202877252,0.425282,62029.0,62028.0,0.17629626]
[1728202878750,0.425282,62029.0,62028.0,0.09564982]
[1728202879740,0.064482,62029.0,62028.0,0.09564982]
[1728202882249,0.174482,62029.0,62028.0,0.09564982]
[1728202883756,0.174482,62029.0,62028.0,0.12106874]
[1728202885353,0.174482,62029.0,62028.0,0.09564982]
[1728202887060,0.174482,62029.0,62028.0,0.09301982]
[1728202892160,0.535282,62029.0,62028.0,0.09301982]
[1728202894155,0.064483,62028.0,62027.0,0.0247642]
[1728202894364,0.064483,62028.0,62026.0,0.09670258]
[1728202894659,0.064483,62028.0,62026.0,0.12115204]
[1728202895048,0.11,62027.0,62026.0,0.12115204]
[1728202896753,0.11,62027.0,62026.0,0.13215204]
[1728202897660,0.11,62027.0,62026.0,0.14415204]
[1728202901956,0.11,62027.0,62026.0,0.23892507]
[1728202905361,0.174484,62027.0,62026.0,0.23892507]
[1728202906165,0.174484,62027.0,62026.0,0.14222249]
[1728202906761,0.174484,62027.0,62026.0,0.23897753]
[1728202907075,0.174484,62027.0,62026.0,0.14222249]
[1728202908161,0.174484,62027.0,62026.0,0.23898885]
[1728202908569,0.174484,62027.0,62026.0,0.14222249]
[1728202909073,0.174484,62027.0,62026.0,0.23899118]
[1728202910666,0.064484,62027.0,62026.0,0.14222249]
[1728202911962,0.3608,62028.0,62026.0,0.1502424]
[1728202912175,0.3608,62028.0,62027.0,0.19153716]
[1728202912381,0.0075,62032.0,62027.0,0.20477303]
[1728202912677,0.0075,62032.0,62030.0,0.16123944]
[1728202912865,0.0075,62032.0,62031.0,0.09477303]
[1728202913068,0.174877,62034.0,62031.0,0.09477303]
[1728202913274,0.174877,62034.0,62032.0,0.09477303]
[1728202913470,0.174877,62034.0,62033.0,0.09477303]
[1728202914079,0.174877,62034.0,62033.0,0.17536284]
[1728202914378,0.174877,62034.0,62033.0,0.09477303]
[1728202914771,0.174877,62034.0,62033.0,0.09314303]
[1728202914969,0.174877,62034.0,62033.0,0.17373207]
[1728202915163,0.174877,62034.0,62033.0,0.08159215]
[1728202918682,0.174877,62034.0,62033.0,0.001]
[1728202923286,0.064877,62034.0,62033.0,0.001]
[1728202923479,0.064877,62034.0,62033.0,0.111]
[1728202923877,0.064877,62034.0,62033.0,0.12246044]
[1728202924278,0.064877,62034.0,62033.0,0.025702]
[1728202929681,0.064877,62034.0,62033.0,0.12025595]
[1728202930083,0.064877,62034.0,62033.0,0.23025595]
[1728202930084,0.0004,62034.0,62033.0,0.23025595]
[1728202930293,0.0004,62034.0,62033.0,1.37833395]
[1728202930480,0.0075,62035.0,62033.0,1.33905768]
[1728202930675,0.0004,62037.0,62034.0,0.67473601]
[1728202930875,0.0004,62037.0,62036.0,0.174475]
[1728202931081,0.0004,62037.0,62036.0,0.36560929]
[1728202931382,0.0004,62037.0,62036.0,0.75262895]
[1728202932690,0.0004,62037.0,62036.0,0.75362895]
[1728202932988,0.0004,62037.0,62036.0,0.27002895]
[1728202933787,0.0004,62037.0,62036.0,0.27102895]
[1728202935091,0.0004,62037.0,62036.0,1.71542895]
[1728202935287,0.0004,62037.0,62036.0,1.81200929]
[1728202935488,0.0042,62041.0,62040.0,0.064471]
[1728202935684,0.0004,62041.0,62040.0,0.25486348]
[1728202935984,0.0004,62041.0,62040.0,0.14486348]
[1728202936287,0.0004,62041.0,62040.0,0.25486348]
[1728202936596,0.0004,62041.0,62040.0,0.174471]
[1728202936788,0.0004,62041.0,62040.0,0.175471]
[1728202937398,0.0004,62041.0,62040.0,0.176471]
[1728202937987,0.0004,62041.0,62040.0,0.35124913]
[1728202940090,0.0004,62041.0,62040.0,0.27085665]
[1728202940401,0.0004,62041.0,62040.0,0.37582336]
[1728202940591,0.0004,62042.0,62040.0,0.41723518]
[1728202940900,0.0004,62042.0,62041.0,0.11958403]
[1728202941598,0.0004,62042.0,62041.0,0.11968689]
[1728202942191,0.0004,62042.0,62041.0,0.18515689]
[1728202942397,0.0004,62042.0,62041.0,0.18484689]
[1728202943492,0.0004,62042.0,62041.0,0.22616225]
[1728202945196,0.00358552,62045.0,62044.0,0.064467]
[1728202945396,0.0325,62052.0,62050.0,0.06446]
[1728202945397,0.0004,62051.0,62050.0,0.06446]
[1728202945695,0.0004,62051.0,62050.0,0.17446]
[1728202945901,0.0004,62051.0,62050.0,0.2386966]
[1728202946196,0.0004,62051.0,62050.0,0.17446]
[1728202946499,0.0004,62051.0,62050.0,0.2386966]
[1728202946694,0.0004,62051.0,62050.0,0.2396966]
[1728202947089,0.0004,62051.0,62050.0,0.2406966]
[1728202948694,0.0004,62051.0,62050.0,0.1306966]
[1728202949001,0.0004,62051.0,62050.0,0.2406966]
[1728202950389,0.0004,62051.0,62050.0,0.26600621]
[1728202954298,0.0004,62051.0,62050.0,0.20176961]
[1728202960513,0.0004,62051.0,62050.0,0.28207496]
[1728202962411,0.0004,62051.0,62050.0,0.37704542]
[1728202963413,0.0004,62051.0,62050.0,0.29674007]
[1728202968515,0.0004,62051.0,62050.0,0.39315508]
[1728202970421,0.0004,62051.0,62050.0,0.29674007]
[1728202974315,0.0004,62051.0,62050.0,0.41171361]
[1728202975110,0.0004,62051.0,62050.0,0.30171361]
[1728202977910,0.0004,62051.0,62050.0,0.18674007]
[1728202982523,0.0004,62051.0,62050.0,0.30247441]
[1728202983925,0.0004,62051.0,62050.0,0.41247441]
[1728202985021,0.0004,62051.0,62050.0,0.30247441]
[1728202987722,0.0004,62051.0,62050.0,0.3045738]
[1728202997126,0.0004,62051.0,62050.0,0.30476122]
[1728203006948,0.0004,62051.0,62050.0,0.18893901]
[1728203008029,0.0004,62051.0,62050.0,0.18920537]
[1728203010237,0.0004,62051.0,62050.0,0.30531277]
[1728203011632,0.0004,62051.0,62050.0,0.30531648]
[1728203020446,0.00303,62051.0,62050.0,0.30531648]
[1728203030755,0.00303,62051.0,62050.0,0.30533882]
[1728203034150,0.00303,62051.0,62050.0,0.18920252]
[1728203041653,0.00303,62051.0,62050.0,0.28584189]
[1728203042052,0.00303,62051.0,62050.0,0.18920252]
[1728203043763,0.00303,62051.0,62050.0,0.28584189]
[1728203043944,0.00303,62051.0,62050.0,0.30546851]
[1728203047869,0.00303,62051.0,62050.0,0.18920252]
[1728203057674,0.00303,62051.0,62050.0,0.30563223]
[1728203058478,0.00303,62051.0,62050.0,0.18920252]
[1728203059474,0.0004,62051.0,62050.0,0.18920252]
[1728203068278,0.0004,62051.0,62050.0,0.30574109]
[1728203071378,0.0004,62051.0,62050.0,0.66654109]
[1728203074371,0.00303,62051.0,62050.0,0.66654109]
[1728203075873,0.00303,62051.0,62050.0,0.30574109]
[1728203076179,0.0004,62056.0,62055.0,0.064455]
[1728203076478,0.0004,62056.0,62055.0,0.16188791]
[1728203076885,0.0004,62056.0,62055.0,0.27833103]
[1728203077076,0.0004,62056.0,62055.0,0.16188791]
[1728203077279,0.0004,62056.0,62055.0,0.16213591]
[1728203077476,0.0004,62056.0,62055.0,0.16313591]
[1728203078481,0.0004,62056.0,62055.0,0.16413591]
[1728203079188,0.0004,62056.0,62055.0,0.26071193]
[1728203082191,0.0004,62056.0,62055.0,0.16413591]
[1728203085882,0.0004,62056.0,62055.0,0.26071193]
[1728203087373,0.0004,62060.0,62059.0,0.064451]
[1728203087579,0.0004,62060.0,62059.0,0.16213191]
[1728203088188,0.0004,62060.0,62059.0,0.2665827]
[1728203088487,0.0004,62060.0,62059.0,0.1710485]
[1728203088687,0.0004,62060.0,62059.0,0.1720485]
[1728203089480,0.0004,62060.0,62059.0,0.5328485]
[1728203090396,0.0004,62060.0,62059.0,0.6539597]
[1728203090977,0.0004,62060.0,62059.0,0.6529597]
[1728203091192,0.0004,62060.0,62059.0,0.6539597]
[1728203091385,0.0004,62060.0,62059.0,0.557479]
[1728203092978,0.0004,62060.0,62059.0,0.6539597]
[1728203093392,0.0004,62060.0,62059.0,0.65392762]
[1728203099681,0.0004,62060.0,62059.0,0.557479]
[1728203100800,0.0004,62060.0,62059.0,0.55725272]
[1728203104501,0.0004,62060.0,62059.0,0.55727838]
[1728203106393,0.0004,62060.0,62059.0,0.653727]
[1728203108001,0.0004,62060.0,62059.0,0.55727838]
[1728203113898,0.0004,62060.0,62059.0,0.45979809]
[1728203114106,0.0004,62060.0,62059.0,0.55728023]
[1728203114294,0.0004,62060.0,62059.0,0.67349577]
[1728203125610,0.00303,62060.0,62059.0,0.67349577]
[1728203128506,0.00303,62060.0,62059.0,0.67418957]
[1728203133313,0.00303,62060.0,62059.0,0.67406819]
[1728203147522,0.00303,62060.0,62059.0,0.67438185]
[1728203148320,0.00303,62060.0,62059.0,0.31358185]
[1728203148629,0.00303,62060.0,62059.0,0.67438185]
[1728203150120,0.00303,62060.0,62059.0,0.31358185]
[1728203150430,0.00303,62060.0,62059.0,0.67438185]
[1728203152817,0.00303,62060.0,62059.0,0.31358185]
[1728203153020,0.00303,62060.0,62059.0,0.67438185]
[1728203157228,0.00303,62060.0,62059.0,0.67442648]
[1728203159120,0.00303,62060.0,62059.0,0.31362648]
[1728203159322,0.00303,62060.0,62059.0,0.67442648]
[1728203160922,0.00303,62060.0,62059.0,0.67332881]
[1728203163425,0.0004,62060.0,62059.0,0.67332881]
[1728203168733,0.0004,62060.0,62059.0,0.55721344]
[1728203170331,0.0004,62060.0,62059.0,0.55721597]
[1728203170733,0.0004,62060.0,62059.0,0.55521597]
[1728203170935,0.0004,62060.0,62059.0,0.55721597]
[1728203172935,0.0004,62060.0,62059.0,0.19641597]
[1728203173134,0.0004,62060.0,62059.0,0.55721597]
[1728203173546,0.0004,62060.0,62059.0,0.67333543]
[1728203173749,0.0004,62063.0,62062.0,0.064448]
[1728203173939,0.0064964,62069.0,62068.0,0.064442]
[1728203174142,0.0038,62075.0,62071.0,0.064438]
[1728203174442,0.0038,62075.0,62071.0,0.0803387]
[1728203174443,0.064438,62072.0,62071.0,0.0803387]
[1728203174638,0.064438,62072.0,62070.0,0.0803387]
[1728203174831,0.0645,62071.0,62070.0,0.0803387]
[1728203175040,0.0645,62071.0,62070.0,0.17786782]
[1728203175240,0.0956,62071.0,62070.0,0.0803387]
[1728203176548,0.0956,62071.0,62069.0,0.0916387]
[1728203176736,0.0956,62071.0,62070.0,0.0803387]
[1728203177042,0.0956,62071.0,62070.0,0.0813387]
[1728203177242,0.0956,62071.0,62070.0,0.002]
[1728203177644,0.0956,62071.0,62070.0,0.001]
[1728203180152,0.0956,62071.0,62070.0,0.002]
[1728203182347,0.0956,62071.0,62070.0,0.0024]
[1728203185738,0.0645,62071.0,62070.0,0.06684]
[1728203187355,0.3608,62074.0,62071.0,0.064438]
[1728203187546,0.3608,62074.0,62073.0,0.0642557]
[1728203187751,0.3608,62074.0,62071.0,0.064438]
[1728203188053,0.3608,62074.0,62073.0,0.06425434]
[1728203188846,0.3608,62074.0,62073.0,0.06525434]
[1728203190050,0.3608,62074.0,62073.0,0.002]
[1728203191152,0.3608,62074.0,62073.0,0.066437]
[1728203191847,0.36674717,62076.0,62074.0,0.064435]
[1728203192049,0.36674717,62076.0,62075.0,0.064434]
[1728203193853,0.36674717,62076.0,62075.0,0.065434]
[1728203194046,0.36674717,62076.0,62075.0,0.12967418]
[1728203194843,0.36674717,62076.0,62075.0,0.13067418]
[1728203197451,0.36674717,62076.0,62075.0,0.066434]
[1728203197947,0.00241719,62076.0,62075.0,0.066434]
[1728203199354,0.457351,62079.0,62075.0,0.066434]
[1728203199552,0.457351,62079.0,62076.0,0.06425021]
[1728203199553,0.455431,62079.0,62076.0,0.06425021]
[1728203200541,0.455431,62079.0,62075.0,0.066434]
[1728203200542,0.455431,62079.0,62077.0,0.06425021]
[1728203201354,0.425231,62079.0,62078.0,0.06425021]
[1728203201557,0.425231,62079.0,62077.0,0.06425021]
[1728203201748,0.425231,62079.0,62078.0,0.06425021]
[1728203201946,0.425231,62079.0,62076.0,0.001]
[1728203201947,0.425231,62079.0,62077.0,0.06425021]
[1728203202346,0.425231,62079.0,62078.0,0.06425021]
[1728203202747,0.425231,62079.0,62077.0,0.06525021]
[1728203202946,0.425231,62079.0,62078.0,0.06425021]
[1728203203151,0.425231,62079.0,62077.0,0.06525021]
[1728203203446,0.425231,62079.0,62078.0,0.06525021]
[1728203204554,0.425231,62079.0,62078.0,0.06625021]
[1728203205047,0.064431,62079.0,62078.0,0.06625021]
[1728203205251,0.064431,62079.0,62078.0,0.06525021]
[1728203205555,0.3608,62081.0,62078.0,0.001]
[1728203205753,0.3608,62081.0,62079.0,0.06426722]
[1728203205944,0.3608,62081.0,62080.0,0.06426722]
[1728203206851,0.3608,62081.0,62080.0,0.064429]
[1728203207562,0.3608,62081.0,62080.0,0.065429]
[1728203208861,0.3608,62081.0,62080.0,0.066429]